bitfinex-derivatives/quotes_ETHF0:USTF0_20241007
["timestamp","ask_amount","ask_price","bid_price","bid_amount"]
[1728287938147,0.4175,2481.4,2481.3,0.70141]
[1728287950252,0.4175,2481.4,2481.3,1.22141957]
[1728287951640,3.2078,2481.9,2481.3,6.27970787]
[1728287951846,0.414,2481.8,2481.7,0.28207]
[1728287952449,0.414,2481.8,2481.7,0.69427]
[1728287953444,1.724,2481.8,2481.7,0.69427]
[1728287954552,1.724,2481.8,2481.7,0.4122]
[1728287956154,1.724,2481.8,2481.6,0.3868]
[1728287956155,0.28207,2481.7,2481.6,0.3868]
[1728287956646,1.724,2481.8,2481.6,0.3868]
[1728287957449,2.00607,2481.8,2481.6,0.3868]
[1728287958547,0.28207,2481.7,2481.6,0.3868]
[1728287959459,1.724,2481.8,2481.6,0.3868]
[1728287959650,2.00607,2481.8,2481.6,0.3868]
[1728287960052,0.28207,2481.7,2481.6,0.3868]
[1728287961355,0.414,2481.8,2481.6,0.3868]
[1728287961562,1.59207,2481.7,2481.6,0.3868]
[1728287961864,1.31,2481.7,2481.6,0.3868]
[1728287962952,1.59207,2481.7,2481.6,0.3868]
[1728287964864,1.31,2481.7,2481.6,0.3868]
[1728287965357,1.31,2481.7,2481.6,0.90718468]
[1728287966158,1.31,2481.7,2481.6,0.52038468]
[1728287966361,1.59207,2481.7,2481.4,0.6937]
[1728287966662,1.59207,2481.7,2481.5,0.52040536]
[1728287966859,1.59207,2481.7,2481.4,0.6937]
[1728287967052,1.59207,2481.7,2481.5,0.52040561]
[1728287967364,1.59207,2481.7,2481.4,0.6937]
[1728287967661,1.59207,2481.7,2481.5,0.52042571]
[1728287967855,1.59207,2481.7,2481.4,0.6937]
[1728287968057,1.59207,2481.7,2481.5,0.52042815]
[1728287968254,1.59207,2481.7,2481.4,0.6937]
[1728287968460,1.59207,2481.7,2481.5,0.52044767]
[1728287968660,1.59207,2481.7,2481.4,0.6937]
[1728287968959,0.28209,2481.6,2481.5,0.52044822]
[1728287969158,1.31,2481.6,2481.5,0.52044822]
[1728287969756,1.59209,2481.6,2481.4,0.4116]
[1728287969951,2.1421,2481.5,2481.4,0.4116]
[1728287970160,2.1421,2481.5,2481.4,0.93209319]
[1728287970560,2.1421,2481.5,2481.4,1.21420319]
[1728287972165,2.1421,2481.5,2481.4,0.93209319]
[1728287974364,2.1421,2481.5,2481.4,1.21420319]
[1728287974568,0.4103,2481.5,2481.4,1.21420319]
[1728287975063,0.4103,2481.5,2481.4,0.69371]
[1728287975267,0.4103,2481.5,2481.4,1.21436225]
[1728287979275,0.4103,2481.5,2481.4,0.69371]
[1728287979568,0.4103,2481.5,2481.4,1.21451187]
[1728287986279,3.2078,2481.9,2481.4,0.93240187]
[1728287986471,25.0,3504.0,2481.4,0.93240187]
[1728287986472,0.4255,2482.1,2482.0,0.28204]
[1728287986674,1.7355,2482.1,2481.7,0.4022]
[1728287986879,1.7355,2482.1,2481.9,0.28205]
[1728287986880,0.3983,2482.0,2481.9,0.28205]
[1728287987078,1.7083,2482.0,2481.9,0.52078616]
[1728287987286,1.7083,2482.0,2481.8,1.1928476]
[1728287987481,1.7083,2482.0,2481.9,0.52072689]
[1728287987881,1.7083,2482.0,2481.9,0.52072634]
[1728287988283,1.7083,2482.0,2481.8,1.1928476]
[1728287988787,1.31,2481.9,2481.8,0.9107876]
[1728287988981,1.31,2481.9,2481.8,1.71350695]
[1728287989576,1.31,2481.9,2481.8,1.43144695]
[1728287990381,1.31,2481.9,2481.8,1.4313797]
[1728287994892,1.31,2481.9,2481.8,1.4345693]
[1728287996388,1.31,2481.9,2481.8,0.9107876]
[1728287996788,1.31,2481.9,2481.8,0.91378163]
[1728287997388,1.31,2481.9,2481.8,0.39]
[1728287997888,1.31,2481.9,2481.8,0.91378352]
[1728287998192,1.31,2481.9,2481.8,0.39]
[1728287998397,1.31,2481.9,2481.8,0.91378542]
[1728287998589,1.31,2481.9,2481.8,0.39]
[1728288000389,0.68035,2482.0,2481.8,0.39]
[1728288001788,0.68034,2482.0,2481.8,0.39]
[1728288002489,0.28205,2481.9,2481.8,0.39]
[1728288003096,0.28205,2481.9,2481.8,0.9147287]
[1728288003695,0.28205,2481.9,2481.8,0.39]
[1728288003896,0.3983,2482.0,2481.8,0.39]
[1728288004398,0.68035,2482.0,2481.8,0.39]
[1728288004600,0.28205,2481.9,2481.8,0.39]
[1728288004792,0.3983,2482.0,2481.8,0.39]
[1728288005098,0.28205,2481.9,2481.8,0.39]
[1728288005300,0.28205,2481.9,2481.8,0.91470887]
[1728288006294,0.28205,2481.9,2481.8,0.91469834]
[1728288006703,0.68034,2482.0,2481.8,0.91469834]
[1728288006899,0.68034,2482.0,2481.8,0.39]
[1728288007696,0.3983,2482.0,2481.8,0.39]
[1728288007903,0.3983,2482.0,2481.9,0.5246654]
[1728288010296,0.3983,2482.0,2481.9,0.52460341]
[1728288012405,0.68034,2482.0,2481.8,0.8154]
[1728288012704,0.28205,2481.9,2481.8,0.8154]
[1728288012909,0.28205,2481.9,2481.8,0.3945]
[1728288013105,0.28207,2481.7,2481.5,3.613]
[1728288013410,0.3916,2481.6,2481.5,3.613]
[1728288013609,0.3916,2481.6,2481.5,4.41967221]
[1728288014705,0.28206,2481.9,2481.5,4.13757221]
[1728288014911,0.28206,2481.9,2481.6,0.80665221]
[1728288015101,0.3916,2481.8,2481.7,0.28207]
[1728288015505,0.3916,2481.8,2481.6,0.28208]
[1728288016011,0.3916,2481.8,2481.5,3.613]
[1728288016213,0.3916,2481.8,2481.7,0.28207]
[1728288016409,0.3916,2481.8,2481.6,0.28208]
[1728288016715,0.3916,2481.8,2481.5,3.613]
[1728288017012,0.3916,2481.8,2481.6,0.80668585]
[1728288017213,0.3916,2481.8,2481.5,3.613]
[1728288017406,0.3916,2481.8,2481.7,0.28207]
[1728288018111,0.3916,2481.8,2481.6,0.28208]
[1728288018311,0.3916,2481.8,2481.7,0.52463504]
[1728288018613,0.3916,2481.8,2481.7,0.80670494]
[1728288018807,0.4255,2482.1,2481.7,0.52463494]
[1728288019115,0.4255,2482.1,2481.9,0.28204]
[1728288019116,0.3984,2482.0,2481.9,0.28204]
[1728288019307,0.3984,2482.0,2481.9,1.21866348]
[1728288019708,0.3984,2482.0,2481.9,0.93662348]
[1728288019909,0.3984,2482.0,2481.9,0.412]
[1728288020306,0.3984,2482.0,2481.8,0.4081]
[1728288020307,0.68045,2482.0,2481.8,0.4081]
[1728288021002,0.3984,2482.0,2481.8,0.69016]
[1728288021410,0.3984,2482.0,2481.9,0.28205]
[1728288021814,0.3984,2482.0,2481.8,0.69016]
[1728288022615,0.3984,2482.0,2481.9,0.28205]
[1728288023008,0.3984,2482.0,2481.8,0.69016]
[1728288023208,0.68044,2482.0,2481.8,0.69016]
[1728288024111,0.3984,2482.0,2481.8,0.69016]
[1728288025404,0.3984,2482.0,2481.9,0.28205]
[1728288026515,0.3984,2482.0,2481.8,0.69016]
[1728288033809,0.3984,2482.0,2481.9,0.28205]
[1728288034021,0.3984,2482.0,2481.8,0.69016]
[1728288036623,0.68044,2482.0,2481.8,0.4081]
[1728288037317,0.3984,2482.0,2481.8,0.4081]
[1728288037518,0.3984,2482.0,2481.9,0.52514981]
[1728288037727,0.3984,2482.0,2481.8,0.4081]
[1728288037922,0.68044,2482.0,2481.8,0.4081]
[1728288038522,0.3984,2482.0,2481.8,0.4081]
[1728288038726,0.3984,2482.0,2481.8,0.69016]
[1728288039314,0.68044,2482.0,2481.8,0.4081]
[1728288040617,3.48985,2481.9,2481.6,1.4686995]
[1728288040926,0.28209,2481.6,2481.5,0.4038]
[1728288041429,1.59209,2481.6,2481.5,0.4038]
[1728288042028,1.31,2481.6,2481.5,0.4038]
[1728288044120,1.05828,2481.7,2481.5,0.4038]
[1728288048734,0.7762,2481.7,2481.5,0.4038]
[1728288048927,0.3922,2481.7,2481.6,1.31]
[1728288049133,0.28206,2481.9,2481.6,1.92859]
[1728288049336,0.28206,2481.9,2481.7,1.7358]
[1728288050328,3.2078,2482.1,2481.9,0.28205]
[1728288050632,0.4192,2482.2,2482.0,0.3897]
[1728288050827,0.70123,2482.2,2482.1,0.4258]
[1728288051019,2.01123,2482.2,2482.1,0.4258]
[1728288051226,0.28203,2482.1,2482.0,0.3897]
[1728288052330,1.59203,2482.1,2482.0,0.3897]
[1728288053430,1.59203,2482.1,2481.8,0.4258]
[1728288053431,0.28205,2481.9,2481.8,0.4258]
[1728288053624,1.59205,2481.9,2481.8,0.4258]
[1728288054226,1.31,2481.9,2481.8,0.4258]
[1728288054526,3.48983,2482.1,2481.8,0.70786]
[1728288054835,4.79983,2482.1,2481.8,1.04426]
[1728288057037,4.5178,2482.1,2481.9,0.28205]
[1728288057925,4.0288,2482.0,2481.4,1.0566995]
[1728288058130,1.31,2481.5,2481.3,0.4147]
[1728288058534,0.423,2481.4,2481.3,0.4147]
[1728288062839,1.31,2481.5,2481.3,0.4147]
[1728288063041,1.9804,2481.5,2481.3,0.7512]
[1728288063733,1.6983,2481.5,2481.3,0.7512]
[1728288064341,1.9804,2481.5,2481.3,0.4147]
[1728288068839,1.6983,2481.5,2481.3,0.4147]
[1728288070136,0.28207,2481.8,2481.4,1.5921]
[1728288070539,0.67037,2481.8,2481.5,0.3365]
[1728288071047,0.67037,2481.8,2481.6,0.4035]
[1728288071231,0.67037,2481.8,2481.7,0.3953]
[1728288071637,4.69997,2481.8,2481.7,0.3953]
[1728288072533,0.67037,2481.8,2481.7,0.3953]
[1728288072846,1.98037,2481.8,2481.7,0.3953]
[1728288075841,0.28209,2481.6,2481.2,4.79993]
[1728288076040,1.31,2481.5,2481.3,0.7976]
[1728288076242,1.7,2481.5,2481.3,0.7976]
[1728288076744,1.7,2481.5,2481.3,1.07971]
[1728288076745,0.39,2481.5,2481.3,1.07971]
[1728288077650,0.39,2481.5,2481.4,0.28211]
[1728288078644,0.39,2481.5,2481.3,1.07971]
[1728288081855,0.39,2481.5,2481.4,0.28211]
[1728288082444,0.39,2481.5,2481.3,1.07971]
[1728288082640,0.39,2481.5,2481.4,0.28211]
[1728288090155,0.39,2481.5,2481.3,1.07971]
[1728288090348,0.6721,2481.5,2481.3,1.07971]
[1728288090656,0.39,2481.5,2481.3,1.07971]
[1728288092952,0.39,2481.5,2481.4,0.28211]
[1728288100660,0.39,2481.5,2481.3,0.7976]
[1728288100964,0.39,2481.5,2481.3,1.07971]
[1728288101772,0.39,2481.5,2481.3,0.7976]
[1728288101960,0.39,2481.5,2481.4,0.28211]
[1728288105866,0.39,2481.5,2481.3,1.07971]
[1728288106274,0.39,2481.5,2481.4,0.28211]
[1728288114894,4.0445,2481.9,2481.4,4.0296]
[1728288115091,4.0445,2481.9,2481.6,0.28209]
[1728288115092,0.4143,2481.7,2481.6,0.28209]
[1728288115298,0.70015,2481.9,2481.7,0.28207]
[1728288115483,0.70015,2481.9,2481.8,0.4227]
[1728288115999,2.01015,2481.9,2481.8,0.4227]
[1728288118591,2.01015,2481.9,2481.6,0.28208]
[1728288118791,2.01015,2481.9,2481.6,0.67928]
[1728288119497,0.28206,2481.8,2481.6,0.3972]
[1728288119693,1.31,2481.8,2481.6,0.3972]
[1728288119998,1.31,2481.7,2481.6,0.3972]
[1728288120187,0.28209,2481.6,2481.3,1.7278095]
[1728288120390,1.7134,2481.5,2481.3,1.05701]
[1728288120595,0.374,2482.0,2481.4,1.31]
[1728288120803,0.28207,2481.8,2481.6,1.31]
[1728288121487,0.28207,2481.8,2481.5,0.2821]
[1728288122303,0.28206,2481.9,2481.5,0.28209]
[1728288122696,0.28206,2481.9,2481.4,2.3666995]
[1728288122904,0.28206,2481.8,2481.5,0.28209]
[1728288123402,1.59209,2481.6,2481.3,2.1137095]
[1728288124504,1.31,2481.6,2481.3,2.1137095]
[1728288124805,1.59209,2481.6,2481.3,2.1137095]
[1728288124997,1.59209,2481.6,2481.3,1.05701]
[1728288127211,0.2821,2481.5,2481.3,0.7749]
[1728288127700,0.2821,2481.5,2481.3,4.8045]
[1728288127897,0.2821,2481.5,2481.3,5.08662]
[1728288128097,0.2821,2481.5,2481.3,0.7749]
[1728288128297,0.2821,2481.5,2481.3,1.05702]
[1728288128604,1.59209,2481.6,2481.3,1.05702]
[1728288128803,0.4185,2481.4,2481.3,1.05702]
[1728288129303,0.4185,2481.4,2481.3,5.08742]
[1728288129899,0.4185,2481.4,2481.3,0.3859]
[1728288129900,0.70061,2481.4,2481.3,0.3859]
[1728288130200,0.4185,2481.4,2481.3,0.3859]
[1728288134810,0.4185,2481.4,2481.3,0.66802]
[1728288135611,0.374,2481.8,2481.3,5.7263]
[1728288135917,0.374,2481.8,2481.7,1.59207]
[1728288136098,0.4124,2482.0,2481.9,0.28205]
[1728288136300,2.0845,2482.5,2481.9,1.31]
[1728288136607,2.0845,2482.5,2481.8,4.38]
[1728288136608,0.374,2482.5,2482.3,1.31]
[1728288136803,2.00438,2482.6,2482.4,0.4113]
[1728288137110,0.4124,2482.6,2482.5,1.31]
[1728288137609,3.2078,2482.7,2482.5,1.31]
[1728288138298,0.374,2482.8,2482.6,1.59197]
[1728288138497,0.4156,2483.0,2482.6,1.59197]
[1728288138904,0.69753,2483.0,2482.6,1.59197]
[1728288142009,2.00753,2483.0,2482.6,1.31]
[1728288143108,1.7256,2483.0,2482.7,0.28196]
[1728288143501,0.374,2483.3,2482.9,1.31]
[1728288143705,0.3934,2483.5,2483.2,1.31]
[1728288143907,3.2078,2483.7,2483.5,1.31]
[1728288144207,3.2078,2483.7,2483.6,0.3874]
[1728288144601,3.2078,2483.7,2483.6,4.69566]
[1728288144810,0.374,2484.1,2483.7,0.28184]
[1728288145011,0.374,2484.1,2483.8,1.31]
[1728288145012,0.28181,2484.1,2483.8,1.31]
[1728288145207,1.31,2484.2,2483.8,1.31]
[1728288145411,1.5918,2484.2,2483.8,1.31]
[1728288145605,1.31,2484.2,2483.8,1.31]
[1728288146011,1.5918,2484.1,2483.7,1.31]
[1728288146511,1.5918,2484.1,2483.6,0.66925]
[1728288146512,0.2818,2484.1,2483.6,0.66925]
[1728288146705,0.2818,2484.1,2483.6,0.3874]
[1728288146905,0.2818,2484.1,2483.6,0.66925]
[1728288147115,0.2818,2484.2,2483.7,0.28184]
[1728288147411,6.4118,2484.3,2483.7,0.28184]
[1728288147613,0.28181,2484.1,2483.6,0.66925]
[1728288149009,0.28182,2484.0,2483.6,0.66925]
[1728288149213,6.4118,2484.3,2483.6,0.3874]
[1728288149408,0.374,2484.3,2484.2,3.11179]
[1728288149604,3.2078,2485.0,2484.2,13.9166]
[1728288149605,0.374,2484.8,2484.2,13.9166]
[1728288149913,4.0424,2485.0,2484.2,13.9166]
[1728288149914,3.6104,2485.0,2484.2,4.27378]
[1728288150213,0.28175,2484.6,2484.2,4.27378]
[1728288150511,0.28174,2484.7,2484.2,3.992]
[1728288150819,0.28174,2484.7,2484.2,5.053]
[1728288151014,3.9955,2485.0,2484.3,0.28178]
[1728288151215,0.28173,2484.8,2484.3,0.28178]
[1728288151417,3.9955,2485.0,2484.3,0.28177]
[1728288151418,0.28172,2484.9,2484.3,0.28177]
[1728288151718,0.28173,2484.8,2484.3,0.28177]
[1728288151911,3.9955,2485.0,2484.2,5.053]
[1728288152107,0.28171,2484.9,2484.4,0.28176]
[1728288153128,0.28172,2484.8,2484.4,0.28176]
[1728288153508,0.28172,2484.8,2484.2,3.992]
[1728288153709,0.28172,2484.8,2484.3,0.28177]
[1728288154115,0.28172,2484.8,2484.2,5.053]
[1728288154116,0.28175,2484.6,2484.2,0.69028]
[1728288154311,2.83,2484.4,2483.9,0.28182]
[1728288154515,0.3888,2484.3,2483.9,0.28182]
[1728288154713,0.3888,2484.3,2483.7,0.7977]
[1728288154914,0.67059,2484.3,2483.7,0.7977]
[1728288155114,0.2818,2484.2,2483.8,0.28183]
[1728288155316,0.2818,2484.2,2483.7,1.07954]
[1728288155518,0.2818,2484.2,2483.8,0.28183]
[1728288156018,0.3888,2484.3,2483.8,0.28183]
[1728288156221,0.67059,2484.3,2483.8,0.28183]
[1728288156416,0.67059,2484.3,2483.7,0.7977]
[1728288156618,0.67059,2484.3,2483.9,0.28182]
[1728288156925,0.28179,2484.2,2483.8,0.28183]
[1728288157124,0.67058,2484.3,2483.8,0.28183]
[1728288157326,0.67058,2484.3,2483.9,0.28182]
[1728288161124,0.28179,2484.2,2483.8,0.28183]
[1728288161628,0.2818,2484.2,2483.8,0.28183]
[1728288162526,0.7872,2484.3,2483.7,3.6277]
[1728288162726,0.2818,2484.1,2483.8,0.28183]
[1728288163021,0.2818,2484.2,2483.8,0.28183]
[1728288163825,0.2818,2484.1,2483.8,0.28183]
[1728288164223,0.2818,2484.2,2483.8,0.28183]
[1728288164728,0.2818,2484.1,2483.8,0.28183]
[1728288164922,0.7872,2484.3,2483.8,0.28183]
[1728288165123,0.2818,2484.2,2483.8,0.28183]
[1728288165624,0.28181,2484.1,2483.8,0.28183]
[1728288166021,0.7872,2484.3,2483.8,0.28183]
[1728288166219,0.2818,2484.2,2483.8,0.28183]
[1728288166530,0.28179,2484.2,2483.9,0.28182]
[1728288166919,1.06898,2484.3,2483.9,0.28182]
[1728288167123,1.06898,2484.3,2483.9,3.11182]
[1728288167423,0.3888,2484.3,2484.2,0.28179]
[1728288167825,3.48954,2484.7,2484.3,0.28178]
[1728288168023,0.3973,2484.6,2484.5,0.28176]
[1728288168233,0.3973,2484.6,2484.5,3.11176]
[1728288168425,0.7815,2485.0,2484.6,0.28174]
[1728288168623,0.4153,2484.9,2484.7,0.419]
[1728288171333,0.69701,2484.9,2484.7,0.419]
[1728288172329,0.28172,2484.8,2484.7,0.419]
[1728288174423,0.28176,2484.5,2484.0,3.921]
[1728288174723,0.28177,2484.4,2484.3,0.3975]
[1728288175332,0.28179,2484.2,2484.0,0.3894]
[1728288175532,0.28179,2484.2,2484.0,0.3975]
[1728288176622,3.2377,2484.3,2484.0,0.3975]
[1728288176832,3.2377,2484.3,2483.8,3.48963]
[1728288176833,0.2818,2484.1,2483.8,3.48963]
[1728288177023,0.2818,2484.1,2483.8,3.88713]
[1728288178630,0.2818,2484.1,2483.8,3.6053]
[1728288178826,0.2818,2484.1,2483.8,3.88713]
[1728288179736,3.2377,2484.3,2483.8,3.6053]
[1728288179931,0.28182,2483.9,2483.8,3.6053]
[1728288180324,0.8142,2484.2,2483.8,3.6053]
[1728288180526,0.28182,2484.0,2483.8,3.6053]
[1728288180732,0.28182,2484.0,2483.8,0.3975]
[1728288181929,0.8142,2484.2,2483.8,0.3975]
[1728288182130,0.28182,2483.9,2483.8,0.3975]
[1728288182935,3.2078,2484.1,2483.8,0.3975]
[1728288183239,0.28182,2483.9,2483.8,0.3975]
[1728288183436,0.28182,2484.0,2483.8,0.3975]
[1728288184030,0.28182,2483.9,2483.8,0.3975]
[1728288184427,3.2078,2484.1,2483.8,0.3975]
[1728288184428,0.28182,2484.0,2483.8,0.3975]
[1728288186533,3.2078,2484.1,2483.8,0.67933]
[1728288186735,0.2818,2484.2,2483.8,3.50933]
[1728288187136,0.2818,2484.2,2483.8,3.2275]
[1728288187341,0.68948,2484.3,2483.9,0.28181]
[1728288187739,0.28179,2484.2,2483.8,3.50933]
[1728288188138,0.4077,2484.3,2484.0,2.83]
[1728288188339,0.28177,2484.4,2484.1,0.6858]
[1728288188535,0.4098,2484.6,2484.1,0.404]
[1728288189240,0.28177,2484.4,2484.1,0.404]
[1728288189439,0.28177,2484.4,2484.1,0.6858]
[1728288189631,0.28176,2484.5,2484.1,0.6858]
[1728288190334,0.28176,2484.5,2484.2,0.28179]
[1728288190541,0.28176,2484.5,2484.3,0.4169]
[1728288192446,0.4098,2484.6,2484.3,0.4169]
[1728288192643,0.4098,2484.6,2484.3,0.69867]
[1728288193345,0.4098,2484.6,2484.3,0.4169]
[1728288193346,0.69155,2484.6,2484.3,0.4169]
[1728288194552,0.28176,2484.5,2484.3,0.4169]
[1728288194945,0.69155,2484.6,2484.3,0.4169]
[1728288198047,0.69155,2484.6,2484.3,0.69867]
[1728288198446,0.4098,2484.6,2484.3,0.69867]
[1728288198651,2.83,2484.8,2484.5,0.28175]
[1728288198652,0.28173,2484.8,2484.5,0.28175]
[1728288198852,0.28173,2484.8,2484.6,0.3908]
[1728288199145,0.28172,2484.9,2484.6,0.3908]
[1728288199456,3.2078,2485.0,2484.7,0.28173]
[1728288199751,3.4895,2485.0,2484.8,0.3922]
[1728288202152,0.4031,2484.9,2484.8,0.67392]
[1728288202541,3.11169,2485.2,2484.9,0.28171]
[1728288202745,0.28169,2485.1,2484.8,0.67392]
[1728288204350,0.4031,2485.2,2484.8,0.3922]
[1728288204652,0.68478,2485.2,2484.9,0.2817]
[1728288205358,0.4031,2485.2,2485.0,0.2817]
[1728288205554,0.68478,2485.2,2484.9,0.2817]
[1728288205856,3.2078,2485.3,2484.8,3.2222]
[1728288206056,3.2078,2485.3,2485.1,0.28168]
[1728288206257,3.2078,2485.3,2485.2,0.66808]
[1728288206452,3.2078,2485.3,2485.2,0.3864]
[1728288207053,3.2078,2485.3,2485.2,0.66808]
[1728288207249,0.806,2485.9,2485.2,0.66808]
[1728288207250,0.806,2485.9,2485.7,0.28161]
[1728288207455,0.28158,2486.1,2485.7,3.11161]
[1728288207653,0.28159,2486.0,2485.7,2.83]
[1728288207856,0.28159,2486.0,2485.7,3.11162]
[1728288208157,3.2078,2486.2,2485.9,2.83]
[1728288208349,0.28157,2486.2,2485.9,2.83]
[1728288208552,1.2008,2486.3,2485.9,2.83]
[1728288208749,0.28158,2486.1,2485.9,2.83]
[1728288209154,0.28158,2486.1,2485.8,3.2078]
[1728288209655,0.28157,2486.2,2485.8,3.48941]
[1728288209964,0.28157,2486.2,2485.8,3.2078]
[1728288210264,0.28157,2486.2,2485.9,2.83]
[1728288210462,1.2008,2486.3,2485.9,3.52389]
[1728288210766,0.8026,2486.3,2486.0,0.28158]
[1728288211056,1.08416,2486.3,2485.9,3.52389]
[1728288211965,0.28157,2486.2,2485.9,0.4123]
[1728288212160,0.28158,2486.1,2485.8,3.2078]
[1728288214757,0.8026,2486.3,2485.8,3.4894]
[1728288215164,0.28157,2486.2,2485.8,3.4894]
[1728288215363,0.8026,2486.3,2486.0,0.28159]
[1728288215561,0.8026,2486.3,2485.9,2.83]
[1728288215562,0.4183,2486.3,2485.9,2.83]
[1728288215862,0.28154,2486.5,2486.1,3.11157]
[1728288216066,0.67564,2486.5,2486.2,0.3936]
[1728288216271,0.3941,2486.5,2486.2,0.67516]
[1728288216457,0.67563,2486.5,2486.2,0.3936]
[1728288216764,0.3941,2486.5,2486.2,0.67516]
[1728288218668,0.67563,2486.5,2486.2,0.3936]
[1728288218864,0.67563,2486.5,2486.2,0.67516]
[1728288218865,0.3941,2486.5,2486.2,0.67516]
[1728288219066,0.3941,2486.5,2486.3,0.28155]
[1728288219462,3.2078,2486.9,2486.3,2.83]
[1728288219663,1.40625,2489.1,2486.8,6.31929]
[1728288219664,0.28145,2487.2,2486.8,6.31929]
[1728288219865,0.28146,2487.1,2486.8,3.2078]
[1728288220156,0.28148,2486.9,2486.8,3.2078]
[1728288220356,0.28151,2486.7,2486.4,2.83]
[1728288220559,0.28152,2486.6,2486.2,3.72279998]
[1728288220761,0.69892,2486.6,2486.2,3.72279998]
[1728288220959,0.69892,2486.6,2486.2,3.51765]
[1728288221169,0.28154,2486.5,2486.2,3.43388149]
[1728288221369,0.28154,2486.5,2486.2,3.2361]
[1728288222567,0.28154,2486.5,2486.2,3.51766]
[1728288222763,0.69892,2486.6,2486.2,3.51766]
[1728288222959,0.69892,2486.6,2486.3,0.28155]
[1728288223157,0.69892,2486.6,2486.2,3.51766]
[1728288223357,0.69892,2486.6,2486.4,2.83]
[1728288223772,0.4174,2486.6,2486.4,2.83]
[1728288224067,0.67451,2486.7,2486.4,2.83]
[1728288224464,0.393,2486.7,2486.4,3.11154]
[1728288225167,0.67451,2486.7,2486.4,3.11154]
[1728288225467,0.28152,2486.6,2486.4,2.83]
[1728288228267,0.393,2486.7,2486.4,2.83]
[1728288228563,0.28151,2486.7,2486.4,2.83]
[1728288229561,0.8013,2486.8,2486.4,2.83]
[1728288229874,0.28151,2486.7,2486.4,2.83]
[1728288233662,1.0828,2486.8,2486.4,3.11154]
[1728288234163,1.0828,2486.8,2486.4,3.11153]
[1728288234568,1.0828,2486.8,2486.5,0.28153]
[1728288234871,1.0828,2486.8,2486.6,2.83]
[1728288235261,0.3974,2486.8,2486.6,2.83]
[1728288235462,0.3974,2486.8,2486.7,0.67391]
[1728288235869,1.07507,2487.1,2486.7,0.3924]
[1728288235870,0.4004,2487.1,2486.7,0.3924]
[1728288236169,3.2078,2487.2,2487.0,2.83]
[1728288236466,3.2078,2487.2,2487.0,3.11147]
[1728288236667,3.48926,2487.2,2487.0,2.83]
[1728288236868,3.2078,2487.2,2487.0,3.11147]
[1728288237973,3.2078,2487.2,2487.0,2.83]
[1728288238971,3.48925,2487.2,2487.0,2.83]
[1728288239168,3.2078,2487.2,2487.0,2.83]
[1728288239473,0.28146,2487.1,2487.0,2.83]
[1728288239978,3.2078,2487.2,2487.0,2.83]
[1728288240168,0.28146,2487.1,2487.0,2.83]
[1728288241272,4.0208,2487.1,2486.6,3.2078]
[1728288241575,0.28151,2486.7,2486.4,7.02]
[1728288241777,0.28145,2487.2,2486.8,0.28149]
[1728288241967,0.28147,2487.0,2486.8,2.83]
[1728288242170,0.28148,2486.9,2486.8,2.83]
[1728288242374,0.28148,2487.0,2486.8,2.83]
[1728288242567,0.2815,2486.8,2486.6,3.2329]
[1728288242770,0.4203,2487.0,2486.6,3.2329]
[1728288242969,0.4203,2487.0,2486.8,2.83]
[1728288243572,0.418,2487.1,2486.8,3.11149]
[1728288243879,0.28148,2487.0,2486.6,0.4029]
[1728288244078,0.2815,2486.9,2486.6,3.6107]
[1728288244473,0.418,2487.1,2486.7,2.83]
[1728288245573,0.28148,2487.0,2486.7,2.83]
[1728288247276,0.418,2487.1,2486.7,2.83]
[1728288247581,0.28148,2487.0,2486.7,2.83]
[1728288247878,0.69947,2487.1,2486.9,2.83]
[1728288248077,0.418,2487.1,2486.9,2.83]
[1728288248471,0.418,2487.1,2486.9,3.11148]
[1728288248672,0.418,2487.1,2486.9,6.31928]
[1728288249573,0.4203,2487.4,2486.9,6.0378]
[1728288249775,0.4203,2487.4,2487.0,0.28147]
[1728288249982,0.28144,2487.3,2487.1,0.4067]
[1728288251278,0.4203,2487.4,2487.1,0.4067]
[1728288251279,0.4005,2487.5,2487.1,0.4067]
[1728288251473,0.28144,2487.4,2487.1,0.4067]
[1728288253180,0.28145,2487.3,2487.1,0.4067]
[1728288253377,0.28145,2487.2,2487.1,0.4067]
[1728288254475,0.28144,2487.3,2486.7,2.83]
[1728288254674,0.4065,2487.1,2486.9,0.28148]
[1728288255483,0.4065,2487.1,2486.9,0.68358]
[1728288256178,0.4065,2487.1,2487.0,0.28147]
[1728288256383,0.28144,2487.3,2487.0,0.28147]
[1728288257179,0.3925,2487.4,2486.9,6.4399]
[1728288257380,0.28145,2487.2,2486.9,6.72138]
[1728288257890,0.3925,2487.4,2486.9,6.4399]
[1728288258090,0.3925,2487.4,2487.1,0.28146]
[1728288258091,0.67393,2487.4,2487.1,0.28146]
[1728288258286,0.67393,2487.4,2487.2,0.3926]
[1728288258492,0.28144,2487.3,2487.2,0.3926]
[1728288261497,0.67304,2487.3,2487.2,0.3926]
[1728288263195,0.3916,2487.3,2486.9,3.51358]
[1728288263385,0.28146,2487.2,2487.0,0.4195]
[1728288263592,0.28145,2487.2,2487.0,0.4195]
[1728288264191,0.28148,2487.0,2486.6,10.50931]